bitfinex-derivatives/quotes_SOLF0:USTF0_20251026
["timestamp","ask_amount","ask_price","bid_price","bid_amount"]
[1761514308398,4.33964607,197.45,197.35,2.65]
[1761514309096,4.69583688,197.44,197.32,2.65]
[1761514309295,9.03548295,197.45,197.32,2.65]
[1761514309596,4.33964607,197.45,197.32,2.65]
[1761514310088,4.5598,197.37,197.32,2.65]
[1761514311595,4.5598,197.37,197.28,2.65]
[1761514312400,4.5601,197.36,197.28,2.65]
[1761514320801,4.33964607,197.38,197.25,2.65]
[1761514320999,4.66015772,197.35,197.25,2.65]
[1761514321906,4.5612,197.31,197.25,2.65]
[1761514322111,4.66015772,197.34,197.25,2.65]
[1761514323007,4.5615,197.3,197.25,2.65]
[1761514323397,4.35225354,197.32,197.25,2.65]
[1761514323603,4.66015772,197.37,197.25,2.65]
[1761514323802,4.5596,197.38,197.25,2.65]
[1761514324109,4.5596,197.38,197.27,2.64]
[1761514324110,9.21995772,197.37,197.27,2.64]
[1761514324302,4.35567485,197.36,197.27,2.64]
[1761514324502,8.91547485,197.37,197.27,2.64]
[1761514325107,8.91547485,197.37,197.28,2.64]
[1761514326305,13.57563257,197.37,197.28,2.64]
[1761514326510,4.35567485,197.36,197.28,2.64]
[1761514329408,4.35567485,197.36,197.3,2.73]
[1761514329708,4.66015772,197.37,197.3,2.73]
[1761514334009,4.66015772,197.37,197.24,4.5625]
[1761514334209,4.66015772,197.35,197.25,2.73]
[1761514335617,4.66015772,197.36,197.25,2.73]
[1761514335817,4.66015772,197.36,197.26,2.73]
[1761514336014,9.01583257,197.36,197.26,2.73]
[1761514336317,4.66015772,197.35,197.26,2.73]
[1761514337018,4.66015772,197.35,197.27,2.73]
[1761514338206,9.01583257,197.35,197.27,2.73]
[1761514339118,9.01583257,197.35,197.29,2.73]
[1761514339306,4.35567485,197.34,197.29,2.73]
[1761514340112,4.35567485,197.35,197.29,2.73]
[1761514340518,4.35567485,197.36,197.3,2.73]
[1761514340718,4.66015772,197.37,197.3,2.73]
[1761514340918,9.01583257,197.37,197.3,2.73]
[1761514341118,4.35567485,197.36,197.3,2.73]
[1761514341321,4.66015772,197.37,197.3,2.73]
[1761514342021,4.35567485,197.39,197.34,2.73]
[1761514342220,4.35567485,197.41,197.34,2.73]
[1761514342419,4.35567485,197.41,197.37,2.73]
[1761514342628,4.35567485,197.42,197.37,2.73]
[1761514342919,4.35567485,197.44,197.37,2.73]
[1761514343319,3.61070236,197.43,197.38,2.73]
[1761514343511,7.96637721,197.43,197.38,2.73]
[1761514343716,3.61070236,197.42,197.38,2.73]
[1761514344721,7.85788381,197.44,197.38,2.73]
[1761514344922,3.61070236,197.43,197.38,2.73]
[1761514347630,7.85600338,197.45,197.38,2.73]
[1761514347828,3.61070236,197.44,197.38,2.73]
[1761514350126,3.61070236,197.44,197.39,2.73]
[1761514350934,7.85554889,197.46,197.39,2.73]
[1761514351135,3.61070236,197.45,197.39,2.73]
[1761514353336,3.61070236,197.46,197.39,2.73]
[1761514357431,4.66015772,197.47,197.39,2.73]
[1761514357739,8.89707429,197.47,197.36,2.73]
[1761514358041,4.23691657,197.46,197.36,2.73]
[1761514358238,3.61070236,197.45,197.36,2.73]
[1761514358441,7.84761893,197.46,197.36,2.73]
[1761514358739,3.61070236,197.45,197.36,2.73]
[1761514358941,4.5583,197.44,197.36,2.73]
[1761514359140,3.61070236,197.43,197.36,2.73]
[1761514359541,12.50686536,197.46,197.36,2.73]
[1761514359742,7.84670624,197.45,197.36,2.73]
[1761514359937,3.61070236,197.44,197.36,2.73]
[1761514361042,4.5585,197.43,197.36,2.73]
[1761514361343,3.61070236,197.42,197.36,2.73]
[1761514367851,7.84999584,197.44,197.36,2.73]
[1761514368046,3.61070236,197.43,197.36,2.73]
[1761514368546,3.61070236,197.43,197.37,2.64]
[1761514369052,4.24126364,197.45,197.37,2.64]
[1761514369351,3.61070236,197.44,197.38,4.5593]
[1761514369551,3.61070236,197.44,197.39,2.64]
[1761514372657,4.66015772,197.51,197.43,2.64]
[1761514374057,4.5568,197.5,197.43,2.64]
[1761514374260,8.80069834,197.5,197.43,2.64]
[1761514374451,4.5568,197.5,197.43,2.64]
[1761514374960,8.80010129,197.5,197.43,2.64]
[1761514375160,4.5568,197.5,197.44,2.64]
[1761514375962,8.79985026,197.5,197.44,2.64]
[1761514378263,4.5568,197.5,197.44,2.64]
[1761514380470,8.79977595,197.5,197.44,2.64]
[1761514380668,4.5568,197.5,197.44,2.64]
[1761514381567,8.80132408,197.5,197.44,2.64]
[1761514381967,4.66015772,197.48,197.41,2.64]
[1761514382358,4.66015772,197.47,197.41,2.64]
[1761514382563,9.21745772,197.48,197.41,2.64]
[1761514382763,4.24452408,197.47,197.41,2.64]
[1761514383870,4.24452408,197.47,197.42,2.75]
[1761514384070,8.80182408,197.48,197.42,2.75]
[1761514384275,13.4619818,197.48,197.42,2.75]
[1761514384464,7.83844088,197.47,197.42,2.75]
[1761514384771,3.5939168,197.46,197.42,2.75]
[1761514385174,7.83844088,197.46,197.42,2.75]
[1761514385365,3.5939168,197.45,197.42,2.75]
[1761514386271,3.5939168,197.44,197.42,2.75]
[1761514386469,3.5939168,197.45,197.42,2.75]
[1761514386664,3.5939168,197.44,197.42,2.75]
[1761514386871,3.5939168,197.45,197.42,2.75]
[1761514387069,3.5939168,197.44,197.42,2.75]
[1761514387268,3.5939168,197.45,197.42,2.75]
[1761514387477,3.5939168,197.44,197.42,2.75]
[1761514387666,7.83844088,197.45,197.42,2.75]
[1761514387868,3.5939168,197.44,197.42,2.75]
[1761514388064,12.51018008,197.46,197.42,2.75]
[1761514388278,7.85002236,197.45,197.42,2.75]
[1761514388569,3.5939168,197.44,197.42,2.75]
[1761514388970,7.84988617,197.46,197.42,2.75]
[1761514389170,3.5939168,197.45,197.42,2.75]
[1761514389371,3.5939168,197.44,197.42,2.75]
[1761514389570,3.5939168,197.45,197.42,2.75]
[1761514389771,3.5939168,197.44,197.42,2.75]
[1761514390070,3.5939168,197.45,197.42,2.75]
[1761514390270,3.5939168,197.44,197.42,2.75]
[1761514390471,7.84988617,197.45,197.42,2.75]
[1761514390676,3.5939168,197.44,197.42,2.75]
[1761514391163,3.5939168,197.43,197.42,2.75]
[1761514391366,7.84988617,197.44,197.42,2.75]
[1761514391574,3.5939168,197.43,197.42,2.75]
[1761514392972,3.5939168,197.43,197.36,2.74]
[1761514393168,4.70783403,197.41,197.36,2.74]
[1761514393370,3.5939168,197.4,197.36,2.74]
[1761514393679,3.59721598,197.39,197.36,2.74]
[1761514393869,7.85318535,197.4,197.36,2.74]
[1761514394069,3.59721598,197.39,197.36,2.74]
[1761514397778,7.85318535,197.39,197.36,2.74]
[1761514397971,3.59721598,197.38,197.36,2.74]
[1761514398167,7.86325208,197.4,197.36,2.74]
[1761514398371,3.59721598,197.39,197.36,2.74]
[1761514402081,3.59721598,197.39,197.34,4.5603]
[1761514402280,3.59721598,197.39,197.35,2.74]
[1761514403586,7.86325208,197.39,197.32,7.3008]
[1761514403884,3.59721598,197.38,197.32,7.3008]
[1761514404285,3.59721598,197.38,197.33,2.74]
[1761514404784,7.86325208,197.38,197.33,2.74]
[1761514405082,3.59721598,197.37,197.33,2.74]
[1761514405274,3.59721598,197.38,197.33,2.74]
[1761514406281,7.86025655,197.38,197.33,2.74]
[1761514406482,3.59721598,197.37,197.33,2.74]
[1761514410984,4.56,197.36,197.27,4.5618]
[1761514411184,10.20439472,197.42,197.3,2.74]
[1761514411185,3.59721598,197.35,197.3,2.74]
[1761514411389,4.25999037,197.38,197.3,2.74]
[1761514411589,3.59721598,197.37,197.3,2.74]
[1761514411890,7.85720635,197.38,197.3,2.74]
[1761514412093,3.59721598,197.37,197.3,2.74]
[1761514413092,4.5601,197.36,197.3,7.3012]
[1761514413289,3.59721598,197.35,197.31,2.74]
[1761514417081,8.15751598,197.35,197.31,2.74]
[1761514417289,3.58343785,197.34,197.31,2.74]
[1761514421388,3.58343785,197.34,197.23,2.63]
[1761514421993,12.53801725,197.35,197.23,2.63]
[1761514422191,7.84213429,197.34,197.23,2.63]
[1761514422391,3.58343785,197.33,197.23,2.63]
[1761514422893,4.69588296,197.33,197.23,2.63]
[1761514423094,4.5615,197.3,197.23,2.63]
[1761514423293,3.58343785,197.29,197.23,2.63]
[1761514425487,4.5615,197.3,197.23,2.63]
[1761514427098,3.58791302,197.29,197.23,2.63]
[1761514433108,3.587985,197.29,197.23,2.63]
[1761514440316,8.149685,197.29,197.23,2.63]
[1761514440517,3.587985,197.28,197.23,2.63]
[1761514445115,7.84764349,197.3,197.23,2.63]
[1761514445421,3.587985,197.29,197.23,2.63]
[1761514446534,7.84886593,197.3,197.23,2.63]
[1761514446723,3.587985,197.29,197.23,2.63]
[1761514451022,3.587985,197.29,197.24,2.78]
[1761514456725,3.587985,197.29,197.24,4.5626]
[1761514456931,7.82827905,197.3,197.25,2.78]
[1761514458226,3.587985,197.29,197.25,2.78]
[1761514459432,3.587985,197.29,197.26,2.78]
[1761514459630,3.587985,197.3,197.26,2.78]
[1761514459831,7.8315943,197.31,197.26,2.78]
[1761514460023,3.587985,197.3,197.26,2.78]
[1761514460229,3.587985,197.29,197.26,2.78]
[1761514460422,3.587985,197.3,197.26,2.78]
[1761514460727,3.587985,197.29,197.26,2.78]
[1761514460939,3.587985,197.3,197.26,2.78]
[1761514461226,3.587985,197.29,197.26,2.78]
[1761514461531,7.83420879,197.3,197.26,2.78]
[1761514461730,3.587985,197.29,197.26,2.78]
[1761514462229,3.587985,197.28,197.26,2.78]
[1761514462531,7.83443914,197.3,197.26,2.78]
[1761514462731,3.587985,197.29,197.26,2.78]
[1761514462929,3.587985,197.28,197.26,2.78]
[1761514463130,3.587985,197.29,197.26,2.78]
[1761514463432,3.587985,197.28,197.26,2.78]
[1761514463635,3.587985,197.29,197.26,2.78]
[1761514463836,3.587985,197.28,197.26,2.78]
[1761514464129,3.587985,197.29,197.26,2.78]
[1761514464335,3.587985,197.28,197.26,2.78]
[1761514464536,4.24645414,197.3,197.26,2.78]
[1761514464537,3.587985,197.29,197.26,2.78]
[1761514464738,3.587985,197.28,197.26,2.78]
[1761514464937,3.587985,197.29,197.28,7.3418]
[1761514465239,3.587985,197.31,197.29,2.78]
[1761514465430,3.587985,197.3,197.29,2.78]
[1761514465630,3.587985,197.32,197.31,2.78]
[1761514467344,4.04892415,197.33,197.31,2.78]
[1761514467539,4.69246752,197.39,197.33,2.78]
[1761514467937,4.69246752,197.4,197.36,2.78]
[1761514468139,4.69246752,197.41,197.36,2.78]
[1761514468539,4.69246752,197.42,197.37,2.78]
[1761514468739,4.69246752,197.44,197.37,2.78]
[1761514469536,4.69246752,197.45,197.39,2.78]
[1761514470940,4.69246752,197.46,197.39,2.78]
[1761514472235,4.69246752,197.47,197.39,2.78]
[1761514474041,9.24966752,197.48,197.39,2.78]
[1761514474542,9.24966752,197.48,197.39,7.339]
[1761514475240,9.24966752,197.48,197.39,4.559]
[1761514475454,9.24966752,197.48,197.4,2.78]
[1761514477146,4.5572,197.48,197.4,2.78]
[1761514479547,3.56554485,197.47,197.4,2.78]
[1761514483046,3.56554485,197.47,197.39,2.72]
[1761514483243,3.56554485,197.49,197.39,2.72]
[1761514483942,3.56554485,197.49,197.41,4.5586]
[1761514484151,3.56554485,197.49,197.42,2.72]
[1761514492267,3.56554485,197.49,197.43,2.72]
[1761514505169,17.01750897,197.5,197.43,2.72]
[1761514505375,7.76824145,197.49,197.43,2.72]
[1761514507676,12.46070897,197.49,197.43,2.72]
[1761514507876,3.56554485,197.48,197.43,2.72]
[1761514508078,12.46531808,197.49,197.44,2.7]
[1761514508274,4.20730571,197.48,197.44,2.7]
[1761514508466,7.77285056,197.48,197.44,2.7]
[1761514509180,3.56554485,197.47,197.44,2.7]
[1761514509581,7.77285056,197.47,197.44,2.7]
[1761514509876,7.77285056,197.47,197.43,4.5582]
[1761514510076,7.77285056,197.47,197.37,3.99134448]
[1761514510077,3.56554485,197.46,197.42,2.84]
[1761514511283,3.56554485,197.45,197.42,2.84]
[1761514511582,7.77285056,197.46,197.42,2.84]
[1761514511782,3.56554485,197.45,197.42,2.84]
[1761514512279,4.20730571,197.46,197.42,2.84]
[1761514512280,3.56554485,197.44,197.42,2.84]
[1761514512584,3.56554485,197.43,197.42,2.84]
[1761514512783,3.56554485,197.44,197.42,2.84]
[1761514512983,3.56554485,197.43,197.42,2.84]
[1761514514285,10.42062293,197.44,197.32,2.84]
[1761514514586,61.7,197.45,197.32,2.84]
[1761514514587,4.72271745,197.4,197.32,2.84]
[1761514514773,3.59365611,197.39,197.32,2.84]
[1761514514975,3.59365611,197.38,197.32,2.84]
[1761514515179,3.59365611,197.37,197.32,2.84]
[1761514515479,3.59365611,197.38,197.32,2.84]
[1761514515679,3.59365611,197.37,197.32,2.84]
[1761514515879,3.59365611,197.36,197.32,2.84]
[1761514516075,3.59365611,197.37,197.32,2.84]
[1761514516277,3.59365611,197.36,197.32,2.84]
[1761514516484,3.59365611,197.37,197.32,2.84]
[1761514516673,3.59365611,197.36,197.32,2.84]
[1761514516874,3.59365611,197.37,197.32,2.84]
[1761514517079,3.59365611,197.36,197.32,2.84]
[1761514518275,7.80096182,197.37,197.32,2.84]
[1761514518480,3.59365611,197.36,197.32,2.84]
[1761514518677,12.5491817,197.38,197.32,2.84]
[1761514518878,7.82646425,197.37,197.32,2.84]
[1761514519079,3.59365611,197.36,197.32,2.84]
[1761514519482,7.82499122,197.38,197.27,3.99134448]
[1761514519684,3.59365611,197.37,197.28,2.84]
[1761514519891,7.8254715,197.4,197.28,2.84]
[1761514520091,3.59365611,197.39,197.35,2.84]
[1761514520591,7.82507968,197.41,197.35,2.84]
[1761514520791,3.59365611,197.4,197.35,2.84]
[1761514522590,7.82464444,197.42,197.35,2.84]
[1761514522891,3.59365611,197.41,197.35,2.84]
[1761514526092,7.82464444,197.41,197.35,2.84]
[1761514526291,3.59365611,197.4,197.35,2.84]
[1761514526995,7.82464444,197.4,197.35,2.84]
[1761514527297,3.59365611,197.39,197.35,2.84]
[1761514528686,4.72271745,197.4,197.35,2.84]
[1761514528891,3.59365611,197.39,197.35,2.84]
[1761514529094,7.82173433,197.39,197.35,2.84]
[1761514529296,3.59365611,197.38,197.35,2.84]
[1761514529897,7.82053202,197.4,197.35,2.84]
[1761514530198,3.59365611,197.39,197.35,2.84]
[1761514530400,3.59365611,197.39,197.24,3.99134448]
[1761514530601,7.82053202,197.39,197.25,2.84]
[1761514530895,3.59365611,197.38,197.25,2.84]
[1761514531799,4.5599,197.37,197.31,2.84]
[1761514532002,3.59365611,197.36,197.31,2.84]
[1761514532299,4.22495066,197.38,197.31,2.84]
[1761514532506,3.59365611,197.38,197.33,3.99134448]
[1761514532718,12.42663444,197.53,197.34,2.84]
[1761514532719,4.72271745,197.46,197.34,2.84]
[1761514532998,4.72271745,197.46,197.38,2.84]
[1761514533212,8.30448635,197.45,197.38,2.84]
[1761514533492,7.80737187,197.44,197.38,2.84]
[1761514533686,3.5817689,197.43,197.38,2.84]
[1761514534089,7.80749109,197.45,197.39,2.84]
[1761514534503,3.5817689,197.45,197.39,2.84]
[1761514534693,4.22582563,197.46,197.4,4.559]
[1761514534898,7.80759453,197.46,197.41,2.84]
[1761514535203,3.5817689,197.45,197.41,2.84]
[1761514535502,7.80784893,197.47,197.41,2.84]
[1761514539402,3.5817689,197.46,197.41,2.84]
[1761514539602,4.22648433,197.47,197.41,2.84]
[1761514539804,12.53097068,197.48,197.41,2.84]
[1761514540006,7.80825323,197.47,197.41,2.84]
[1761514541801,3.5817689,197.47,197.42,2.79]
[1761514542105,4.72271745,197.5,197.42,2.79]
[1761514542106,4.2140882,197.49,197.42,2.79]
[1761514542296,12.51857455,197.5,197.42,2.79]
[1761514542495,7.7958571,197.49,197.42,2.79]
[1761514542703,3.5817689,197.48,197.42,2.79]
[1761514543099,4.2140882,197.49,197.44,2.79]
[1761514543405,3.5817689,197.49,197.44,2.79]
[1761514543605,3.5817689,197.5,197.44,2.79]
[1761514543806,7.79582632,197.52,197.44,2.79]
[1761514544104,4.21405742,197.52,197.44,2.79]
[1761514544305,4.21405742,197.53,197.47,2.79]
[1761514545704,8.93677487,197.55,197.47,2.79]
[1761514546104,8.93677487,197.55,197.48,2.79]
[1761514546308,4.72271745,197.6,197.48,2.79]
[1761514546509,8.93598734,197.61,197.48,2.79]
[1761514546709,4.21326989,197.6,197.45,2.79]
[1761514547004,4.72271745,197.61,197.45,2.79]
[1761514547209,8.93598734,197.62,197.51,4.5563]
[1761514547408,8.93598734,197.62,197.51,7.3463]
[1761514547613,8.93598734,197.61,197.51,7.3463]
[1761514547909,4.21326989,197.6,197.51,7.3463]
[1761514548507,4.21326989,197.6,197.52,2.79]
[1761514549000,4.21326989,197.61,197.52,2.79]
[1761514549203,4.20636264,197.61,197.52,2.79]
[1761514549514,4.72271745,197.62,197.52,2.79]
[1761514550006,8.92908009,197.62,197.52,2.79]
[1761514550206,4.20636264,197.61,197.52,2.79]
[1761514550608,4.20636264,197.62,197.53,2.79]
[1761514550810,4.72271745,197.64,197.53,2.79]
[1761514552119,8.92908009,197.65,197.53,2.79]
[1761514553418,8.92908009,197.65,197.54,2.79]
[1761514553912,4.20636264,197.65,197.54,2.79]
[1761514555120,4.20636264,197.65,197.55,2.79]
[1761514555818,4.19508681,197.65,197.55,2.79]
[1761514557317,61.68,197.66,197.57,2.79]
[1761514558219,61.68,197.66,197.58,2.79]
[1761514559027,61.68,197.66,197.49,15.86298824]
[1761514559028,61.68,197.66,197.6,2.79]
[1761514559537,4.5522,197.7,197.6,2.79]
[1761514559729,4.5522,197.7,197.54,6.74908824]
[1761514559730,4.18798274,197.71,197.62,2.79]
[1761514562334,4.72271745,197.7,197.58,2.79]
[1761514562528,4.18798274,197.71,197.58,2.79]
[1761514562529,8.91070019,197.71,197.58,2.79]
[1761514562728,4.5534,197.65,197.58,2.79]
[1761514564434,4.5529,197.67,197.58,2.79]
[1761514568535,4.5529,197.67,197.58,7.3447]
[1761514568741,4.5529,197.67,197.59,2.64]
[1761514571140,4.18393264,197.71,197.6,4.5542]
[1761514571346,4.18393264,197.71,197.61,2.64]
[1761514573742,4.18393264,197.71,197.57,2.64]
[1761514573948,4.21849569,197.74,197.57,2.64]
[1761514574135,4.72271745,197.75,197.57,2.64]
[1761514574339,8.94121314,197.76,197.57,2.64]
[1761514575050,8.94121314,197.76,197.64,2.64]
[1761514575245,4.72271745,197.75,197.64,2.64]
[1761514576751,8.94121314,197.76,197.66,2.64]
[1761514577143,4.72271745,197.75,197.66,2.64]
[1761514577542,8.94121314,197.76,197.66,2.64]
[1761514578546,4.21849569,197.76,197.66,2.64]
[1761514582855,61.62,197.77,197.66,2.64]
[1761514583057,4.21849569,197.76,197.66,2.64]
[1761514584860,4.21849569,197.76,197.68,2.64]
[1761514585355,66.2894109,197.77,197.68,2.64]
[1761514585561,4.21849569,197.76,197.68,2.64]
[1761514586358,8.90790659,197.76,197.68,2.64]
[1761514587861,4.21849569,197.75,197.68,2.64]
[1761514588162,4.21849569,197.76,197.69,2.64]
[1761514588362,4.6894109,197.77,197.69,2.64]
[1761514591168,4.6894109,197.76,197.69,2.64]
[1761514591568,8.93308059,197.76,197.69,2.64]
[1761514591767,4.24366969,197.75,197.69,2.64]
[1761514591966,4.6894109,197.76,197.69,2.64]
[1761514592264,8.93308059,197.77,197.69,2.64]
[1761514592470,8.93308059,197.76,197.69,2.64]
[1761514592671,4.24366969,197.75,197.69,2.64]
[1761514592866,8.93308059,197.77,197.69,2.64]
[1761514593073,4.6894109,197.76,197.67,2.64]
[1761514594270,8.93308059,197.76,197.67,2.64]
[1761514595070,8.93308059,197.76,197.68,2.64]
[1761514598470,4.24366969,197.76,197.68,2.64]
[1761514598775,8.9535534,197.76,197.68,2.64]
[1761514599771,8.9535534,197.76,197.68,7.1923]
[1761514599960,8.9535534,197.76,197.69,2.71]
[1761514601169,4.24366969,197.75,197.69,2.71]
[1761514601369,4.70988371,197.76,197.69,2.71]
[1761514601574,8.9535534,197.77,197.69,2.71]
[1761514602672,4.70988371,197.76,197.69,2.71]
[1761514604276,4.70988371,197.75,197.69,2.71]
[1761514605469,4.70988371,197.75,197.65,2.71]
[1761514607474,4.70988371,197.74,197.65,2.71]
[1761514607873,4.70988371,197.73,197.65,2.71]
[1761514608878,4.70988371,197.69,197.57,2.71]
[1761514609074,4.70988371,197.68,197.57,2.71]
[1761514609297,8.9535534,197.68,197.57,2.71]
[1761514609482,8.9535534,197.68,197.58,2.71]
[1761514609679,4.70988371,197.66,197.48,6.29491417]
[1761514609886,4.70988371,197.65,197.53,2.71]
[1761514610072,4.70988371,197.64,197.53,2.71]
[1761514610273,4.70988371,197.63,197.53,2.71]
[1761514610680,4.70988371,197.62,197.53,2.71]
[1761514611381,61.6,197.61,197.53,2.71]
[1761514611585,4.24366969,197.6,197.53,2.71]
[1761514611879,61.6,197.61,197.53,2.71]
[1761514612776,4.18918787,197.6,197.53,2.71]
[1761514613773,61.6,197.61,197.53,2.71]
[1761514613982,4.18918787,197.6,197.53,2.71]
[1761514620297,4.18918787,197.6,197.49,2.71]
[1761514625000,61.62,197.59,197.49,2.71]
[1761514625199,61.62,197.59,197.49,4.5568]
[1761514625498,4.7066346,197.65,197.5,2.76]
[1761514625698,61.62,197.64,197.5,2.76]
[1761514625900,4.27752679,197.63,197.5,2.76]
[1761514626295,4.27752679,197.63,197.53,2.76]
[1761514626894,61.62,197.64,197.53,2.76]
[1761514627094,4.27752679,197.63,197.53,2.76]
[1761514628497,4.5543,197.61,197.53,2.76]
[1761514628993,4.5546,197.6,197.53,2.76]
[1761514635604,4.27752679,197.63,197.53,2.76]
[1761514635805,61.62,197.63,197.53,2.76]
[1761514636007,4.27752679,197.62,197.53,2.76]
[1761514636207,4.27752679,197.64,197.53,2.76]
[1761514636409,4.27752679,197.64,197.55,2.81]
[1761514636904,61.62,197.65,197.55,2.81]
[1761514637510,61.62,197.65,197.56,2.81]
[1761514639105,8.68692662,197.69,197.57,2.81]
[1761514639307,4.27707479,197.68,197.57,2.81]
[1761514639611,61.62,197.69,197.57,2.81]
[1761514639901,61.62,197.69,197.61,2.81]
[1761514641013,4.7066346,197.72,197.62,2.81]
[1761514641215,66.3266346,197.72,197.62,2.81]
[1761514641514,4.27991463,197.71,197.62,2.81]
[1761514644625,4.27991463,197.71,197.63,2.81]
[1761514645212,4.27991463,197.72,197.63,2.81]
[1761514645413,4.27991463,197.72,197.64,2.81]
[1761514646215,4.27991463,197.72,197.65,2.81]
[1761514647221,4.27991463,197.73,197.65,2.81]
[1761514649417,8.98654923,197.73,197.65,2.81]
[1761514653226,4.27991463,197.73,197.65,2.81]
[1761514653520,8.98654923,197.73,197.65,2.81]
[1761514654417,4.27991463,197.73,197.65,2.81]
[1761514660529,61.58,197.74,197.65,2.81]
[1761514660733,4.27991463,197.73,197.65,2.81]
[1761514663025,8.98654923,197.73,197.65,2.81]
[1761514663831,4.7066346,197.72,197.65,2.81]
[1761514664228,4.7066346,197.72,197.61,2.87]
[1761514671638,4.7066346,197.71,197.61,2.87]
[1761514675040,4.7066346,197.71,197.57,2.87]
[1761514675245,4.7066346,197.69,197.57,2.87]
[1761514676239,4.7066346,197.68,197.57,2.87]
[1761514676457,60.9,197.67,197.57,2.87]
[1761514676747,4.28644315,197.66,197.57,2.87]
[1761514680138,8.99307775,197.66,197.57,2.87]
[1761514680546,4.7066346,197.65,197.57,2.87]
[1761514680746,38.9866346,197.65,197.57,2.87]
[1761514681042,4.28644315,197.64,197.57,2.87]
[1761514682146,8.99307775,197.65,197.57,2.87]
[1761514682445,4.7066346,197.64,197.57,2.87]
[1761514684342,8.99307775,197.65,197.57,2.87]
[1761514684542,4.28644315,197.64,197.59,2.69]
[1761514684739,4.7066346,197.66,197.59,2.69]
[1761514686544,8.99307775,197.66,197.59,2.69]
[1761514686749,4.28644315,197.65,197.59,2.69]
[1761514687050,4.7066346,197.66,197.59,2.69]
[1761514687553,8.99307775,197.66,197.59,2.69]
[1761514687749,4.28644315,197.65,197.59,2.69]
[1761514687950,4.7066346,197.66,197.59,2.69]
[1761514688348,4.7066346,197.67,197.59,2.69]
[1761514694355,8.99307775,197.67,197.59,2.69]
[1761514694654,4.28644315,197.66,197.59,2.69]
[1761514694855,4.7066346,197.67,197.59,2.69]
[1761514696449,4.7066346,197.68,197.59,2.69]
[1761514698252,4.7066346,197.68,197.6,2.85]
[1761514698958,4.7066346,197.68,197.6,7.4042]
[1761514699155,4.7066346,197.68,197.61,2.85]
[1761514699356,4.7066346,197.67,197.61,2.85]
[1761514704061,8.99307775,197.67,197.61,2.85]
[1761514704262,4.28644315,197.66,197.61,2.85]
[1761514705359,4.7066346,197.67,197.61,2.85]
[1761514706563,8.99307775,197.67,197.61,2.85]
[1761514706862,4.28644315,197.66,197.61,2.85]
[1761514707057,4.7066346,197.67,197.61,2.85]
[1761514707458,8.99307775,197.67,197.61,2.85]
[1761514707762,4.28644315,197.66,197.61,2.85]
[1761514707958,4.7066346,197.67,197.61,2.85]
[1761514708163,8.99307775,197.67,197.61,2.85]
[1761514708458,4.28644315,197.66,197.61,2.85]
[1761514708657,4.7066346,197.67,197.61,2.85]
[1761514708862,8.99307775,197.67,197.61,2.85]
[1761514709063,4.28644315,197.66,197.61,2.85]
[1761514709258,4.7066346,197.67,197.61,2.85]
[1761514709463,9.01267914,197.67,197.61,2.85]
[1761514709765,4.30604454,197.66,197.61,2.85]
[1761514712064,4.7066346,197.67,197.61,2.85]
[1761514712267,4.7066346,197.66,197.61,2.85]
[1761514712458,4.30604454,197.68,197.61,2.85]
[1761514712656,4.7330407,197.66,197.61,2.85]
[1761514712864,9.03908524,197.66,197.61,2.85]